[Event "*** Titled Tuesday Blitz AM"]
[Site "Chess.com"]
[Date "2020.01.07"]
[Round "8"]
[White "Me_ch_an"]
[Black "muran29"]
[Result "0-1"]
[WhiteElo "2352"]
[BlackElo "2497"]
[TimeControl "180+2"]
[EndTime "10:49:20 PST"]
[Termination "muran29 won by resignation"]

1. e4 {[%clk 0:02:58.7]} 1... c5 {[%clk 0:02:54.5]} 2. Nc3 {[%clk 0:02:58.6]}
2... e6 {[%clk 0:02:54.9]} 3. g3 {[%clk 0:03:00.5]} 3... Nc6 {[%clk 0:02:55.6]}
4. d3 {[%clk 0:02:53.6]} 4... d5 {[%clk 0:02:55.2]} 5. exd5 {[%clk 0:02:52.4]}
5... exd5 {[%clk 0:02:55.8]} 6. Bg2 {[%clk 0:02:53.7]} 6... Nf6 {[%clk
0:02:56.7]} 7. Nge2 {[%clk 0:02:53.7]} 7... Be7 {[%clk 0:02:56.9]} 8. O-O {[%clk
0:02:54]} 8... O-O {[%clk 0:02:57.3]} 9. Nf4 {[%clk 0:02:52.7]} 9... d4 {[%clk
0:02:57.5]} 10. Ne4 {[%clk 0:02:52.9]} 10... Bf5 {[%clk 0:02:52.8]} 11. Nxf6+
{[%clk 0:02:50.4]} 11... Bxf6 {[%clk 0:02:53.5]} 12. Re1 {[%clk 0:02:52]} 12...
Rc8 {[%clk 0:02:47.5]} 13. Nd5 {[%clk 0:02:46.1]} 13... Bg5 {[%clk 0:02:46.1]}
14. Qf3 {[%clk 0:02:37.2]} 14... Be6 {[%clk 0:02:42.8]} 15. Nf4 {[%clk
0:02:29.8]} 15... Bxf4 {[%clk 0:02:43.7]} 16. Bxf4 {[%clk 0:02:31.2]} 16... Nb4
{[%clk 0:02:45.4]} 17. Re2 {[%clk 0:02:13.2]} 17... Bd5 {[%clk 0:02:46.3]} 18.
Qh5 {[%clk 0:02:14]} 18... Bxg2 {[%clk 0:02:47.1]} 19. Kxg2 {[%clk 0:02:15.9]}
19... Re8 {[%clk 0:02:37.3]} 20. a3 {[%clk 0:01:55.5]} 20... Qd5+ {[%clk
0:02:35.1]} 21. Qxd5 {[%clk 0:01:45.9]} 21... Nxd5 {[%clk 0:02:37]} 22. Rae1
{[%clk 0:01:38.3]} 22... Nxf4+ {[%clk 0:02:34.6]} 23. gxf4 {[%clk 0:01:40.2]}
23... Rxe2 {[%clk 0:02:36.2]} 24. Rxe2 {[%clk 0:01:41]} 24... Kf8 {[%clk
0:02:37.9]} 25. Kf3 {[%clk 0:01:39.9]} 25... f5 {[%clk 0:02:37]} 26. Re5 {[%clk
0:01:39.4]} 26... g6 {[%clk 0:02:38.4]} 27. h4 {[%clk 0:01:33.3]} 27... b6
{[%clk 0:02:35.1]} 28. h5 {[%clk 0:01:28.3]} 28... Re8 {[%clk 0:02:34.5]} 29.
Rd5 {[%clk 0:01:24.1]} 29... Ke7 {[%clk 0:02:35]} 30. Re5+ {[%clk 0:01:19.2]}
30... Kf7 {[%clk 0:02:35]} 31. Rd5 {[%clk 0:01:18.7]} 31... Ke6 {[%clk
0:02:23.3]} 32. Re5+ {[%clk 0:01:18.8]} 32... Kd7 {[%clk 0:02:24.7]} 33. hxg6
{[%clk 0:00:58.4]} 33... hxg6 {[%clk 0:02:25.3]} 34. Kg3 {[%clk 0:00:54.9]}
34... Re6 {[%clk 0:02:10.3]} 35. Kh4 {[%clk 0:00:52.7]} 35... Kd6 {[%clk
0:02:10.9]} 36. Rxe6+ {[%clk 0:00:23.7]} 36... Kxe6 {[%clk 0:02:12.8]} 37. Kg5
{[%clk 0:00:23.6]} 37... Kf7 {[%clk 0:02:13.6]} 38. c3 {[%clk 0:00:20.7]} 38...
dxc3 {[%clk 0:02:02.7]} 39. bxc3 {[%clk 0:00:22.6]} 39... b5 {[%clk 0:02:04.6]}
40. f3 {[%clk 0:00:17.2]} 40... a5 {[%clk 0:02:05.4]} 0-1

[Event "*** Titled Tuesday Blitz AM"]
[Site "Chess.com"]
[Date "2020.01.07"]
[Round "8"]
[White "shanemelaughcm"]
[Black "WorldChampionBulletChess"]
[Result "0-1"]
[WhiteElo "2287"]
[BlackElo "2118"]
[TimeControl "180+2"]
[EndTime "10:49:20 PST"]
[Termination "WorldChampionBulletChess won by checkmate"]

1. d4 {[%clk 0:03:01.7]} 1... Nf6 {[%clk 0:03:00.7]} 2. h4 {[%clk 0:02:59.6]}
2... e6 {[%clk 0:03:00.4]} 3. h5 {[%clk 0:02:58.5]} 3... c5 {[%clk 0:03:00.9]}
4. h6 {[%clk 0:02:52.5]} 4... Nc6 {[%clk 0:02:58.1]} 5. e3 {[%clk 0:02:43.6]}
5... d5 {[%clk 0:02:50.4]} 6. Nf3 {[%clk 0:02:41.1]} 6... gxh6 {[%clk
0:02:01.8]} 7. Nc3 {[%clk 0:02:40.3]} 7... cxd4 {[%clk 0:02:02.3]} 8. exd4
{[%clk 0:02:41.2]} 8... Bd7 {[%clk 0:01:57.8]} 9. Bxh6 {[%clk 0:02:42.1]} 9...
Qa5 {[%clk 0:01:58.8]} 10. Bxf8 {[%clk 0:02:40.4]} 10... Rxf8 {[%clk 0:02:00.7]}
11. Qd3 {[%clk 0:02:41.5]} 11... O-O-O {[%clk 0:02:00.7]} 12. O-O-O {[%clk
0:02:41.9]} 12... Nb4 {[%clk 0:02:01.2]} 13. Qe3 {[%clk 0:02:32.5]} 13... Nxa2+
{[%clk 0:02:02.1]} 14. Nxa2 {[%clk 0:02:33.7]} 14... Qxa2 {[%clk 0:02:04]} 15.
Qc3+ {[%clk 0:02:35.6]} 15... Kb8 {[%clk 0:02:03.7]} 16. b3 {[%clk 0:02:37.1]}
16... Rc8 {[%clk 0:02:03.7]} 17. Qb2 {[%clk 0:02:38.5]} 17... Qa5 {[%clk
0:02:03.9]} 18. Rh6 {[%clk 0:02:38]} 18... Ne4 {[%clk 0:01:59.4]} 19. Rxh7
{[%clk 0:02:37.7]} 19... Nxf2 {[%clk 0:01:58.1]} 20. Rd2 {[%clk 0:02:32.6]}
20... Ne4 {[%clk 0:01:59.1]} 21. Rd1 {[%clk 0:02:26.9]} 21... Nc3 {[%clk
0:01:59.8]} 22. Rd3 {[%clk 0:02:28]} 22... Na2+ {[%clk 0:02:00.6]} 23. Kb1
{[%clk 0:02:28.9]} 23... Nb4 {[%clk 0:01:59]} 24. Rd2 {[%clk 0:02:29.3]} 24...
e5 {[%clk 0:01:47.2]} 25. Rh5 {[%clk 0:02:11.4]} 25... e4 {[%clk 0:01:42.1]} 26.
Ne5 {[%clk 0:02:11.9]} 26... Be6 {[%clk 0:01:37.4]} 27. c3 {[%clk 0:02:07.2]}
27... Nd3 {[%clk 0:01:33.2]} 28. Nxd3 {[%clk 0:02:05.8]} 28... exd3 {[%clk
0:01:33.4]} 29. b4 {[%clk 0:02:02.6]} 29... Qc7 {[%clk 0:01:30.8]} 30. Rxd3
{[%clk 0:02:00.1]} 30... Qf4 {[%clk 0:01:31]} 31. Be2 {[%clk 0:01:55.8]} 31...
Bf5 {[%clk 0:01:31]} 32. Rxf5 {[%clk 0:01:52.4]} 32... Qxf5 {[%clk 0:01:32.9]}
33. Ka2 {[%clk 0:01:52.2]} 33... Qe4 {[%clk 0:01:17.2]} 34. Rf3 {[%clk
0:01:43.4]} 34... f5 {[%clk 0:01:12.7]} 35. Bd3 {[%clk 0:01:44.8]} 35... Qe1
{[%clk 0:01:12.8]} 36. Bxf5 {[%clk 0:01:39.8]} 36... Rc6 {[%clk 0:01:07.9]} 37.
g4 {[%clk 0:01:41]} 37... Ra6+ {[%clk 0:01:08.9]} 38. Kb3 {[%clk 0:01:41.2]}
38... Qd1+ {[%clk 0:01:05.4]} 39. Bc2 {[%clk 0:01:42.1]} 39... Qxf3 {[%clk
0:01:05.6]} 40. Qc1 {[%clk 0:01:41.2]} 40... Qe2 {[%clk 0:00:57.6]} 41. Qg5
{[%clk 0:01:39.5]} 41... Qc4+ {[%clk 0:00:57.7]} 42. Kb2 {[%clk 0:01:40.4]}
42... Ra2+ {[%clk 0:00:58.6]} 43. Kc1 {[%clk 0:01:40.8]} 43... Rf1+ {[%clk
0:00:59.6]} 44. Kd2 {[%clk 0:01:42.5]} 44... Rf2+ {[%clk 0:00:55.3]} 45. Kc1
{[%clk 0:01:43.3]} 45... Raxc2+ {[%clk 0:00:56]} 46. Kd1 {[%clk 0:01:44.9]}
46... Qf1# {[%clk 0:00:57]} 0-1

[Event "*** Titled Tuesday Blitz AM"]
[Site "Chess.com"]
[Date "2020.01.07"]
[Round "8"]
[White "RubensCezila"]
[Black "ural58"]
[Result "1-0"]
[WhiteElo "2591"]
[BlackElo "2366"]
[TimeControl "180+2"]
[EndTime "10:49:41 PST"]
[Termination "RubensCezila won on time"]

1. b3 {[%clk 0:03:00.8]} 1... Nf6 {[%clk 0:02:53.5]} 2. Bb2 {[%clk 0:03:01.8]}
2... g6 {[%clk 0:02:55]} 3. d4 {[%clk 0:03:02.2]} 3... Bg7 {[%clk 0:02:55.2]} 4.
Nc3 {[%clk 0:03:03.4]} 4... c5 {[%clk 0:02:54.9]} 5. e3 {[%clk 0:03:03.4]} 5...
O-O {[%clk 0:02:51.6]} 6. Qd2 {[%clk 0:03:04]} 6... b6 {[%clk 0:02:49.6]} 7.
O-O-O {[%clk 0:03:04]} 7... Bb7 {[%clk 0:02:45.3]} 8. f3 {[%clk 0:03:04.4]} 8...
cxd4 {[%clk 0:02:43.8]} 9. exd4 {[%clk 0:03:04.5]} 9... Na6 {[%clk 0:02:37.2]}
10. Kb1 {[%clk 0:02:57.3]} 10... Rc8 {[%clk 0:02:37.1]} 11. g4 {[%clk
0:02:54.7]} 11... Nb4 {[%clk 0:02:34.3]} 12. a3 {[%clk 0:02:29.4]} 12... Nbd5
{[%clk 0:02:32.2]} 13. Nxd5 {[%clk 0:02:29.8]} 13... Bxd5 {[%clk 0:02:24.4]} 14.
h3 {[%clk 0:02:12.8]} 14... Qc7 {[%clk 0:02:18.4]} 15. Rh2 {[%clk 0:02:09.5]}
15... Bh6 {[%clk 0:02:10.1]} 16. Qxh6 {[%clk 0:01:53.5]} 16... Qxh2 {[%clk
0:02:10.2]} 17. Bd3 {[%clk 0:01:55.4]} 17... b5 {[%clk 0:01:25.5]} 18. h4 {[%clk
0:01:46.3]} 18... Rc6 {[%clk 0:01:19.9]} 19. h5 {[%clk 0:01:23.6]} 19... Rfc8
{[%clk 0:01:18.4]} 20. Rc1 {[%clk 0:00:56.8]} 20... a6 {[%clk 0:01:17.8]} 21.
Qg5 {[%clk 0:00:53.1]} 21... Re6 {[%clk 0:00:57.3]} 22. Ne2 {[%clk 0:00:48.4]}
22... Bxf3 {[%clk 0:00:48.5]} 23. Nf4 {[%clk 0:00:49.1]} 23... Rec6 {[%clk
0:00:24.6]} 24. d5 {[%clk 0:00:47.8]} 24... Rd6 {[%clk 0:00:22.6]} 25. Be5
{[%clk 0:00:45.8]} 25... Rxd5 {[%clk 0:00:12.8]} 26. Nxd5 {[%clk 0:00:43.2]} 1-0

[Event "*** Titled Tuesday Blitz AM"]
[Site "Chess.com"]
[Date "2020.01.07"]
[Round "8"]
[White "kkpanu9"]
[Black "JSMastropiero"]
[Result "0-1"]
[WhiteElo "2117"]
[BlackElo "2385"]
[TimeControl "180+2"]
[EndTime "10:49:43 PST"]
[Termination "JSMastropiero won by resignation"]

1. e4 {[%clk 0:03:01.9]} 1... c5 {[%clk 0:02:52.9]} 2. Nf3 {[%clk 0:03:02.6]}
2... e6 {[%clk 0:02:52.4]} 3. d4 {[%clk 0:03:03.8]} 3... cxd4 {[%clk 0:02:52.5]}
4. Nxd4 {[%clk 0:03:05.7]} 4... a6 {[%clk 0:02:52]} 5. Nc3 {[%clk 0:03:06.7]}
5... Qc7 {[%clk 0:02:49.1]} 6. g3 {[%clk 0:03:07.8]} 6... Nf6 {[%clk 0:02:48.1]}
7. Bg2 {[%clk 0:03:09]} 7... d6 {[%clk 0:02:44.6]} 8. O-O {[%clk 0:03:09.5]}
8... Bd7 {[%clk 0:02:45.5]} 9. Nb3 {[%clk 0:03:09.8]} 9... Nc6 {[%clk
0:02:44.7]} 10. f4 {[%clk 0:03:09.7]} 10... Be7 {[%clk 0:02:44.8]} 11. g4 {[%clk
0:03:10.1]} 11... h6 {[%clk 0:02:39]} 12. Be3 {[%clk 0:03:03.6]} 12... h5 {[%clk
0:02:26.1]} 13. h3 {[%clk 0:03:02.4]} 13... hxg4 {[%clk 0:02:26]} 14. hxg4
{[%clk 0:03:03.1]} 14... g5 {[%clk 0:02:25.3]} 15. fxg5 {[%clk 0:02:53.2]} 15...
Nh7 {[%clk 0:02:26.4]} 16. Qf3 {[%clk 0:02:54.2]} 16... Ne5 {[%clk 0:02:25]} 17.
Qg3 {[%clk 0:02:49.5]} 17... Bxg5 {[%clk 0:02:15.5]} 18. Bd4 {[%clk 0:02:35]}
18... O-O-O {[%clk 0:02:08.9]} 19. Rad1 {[%clk 0:02:22.2]} 19... Nf6 {[%clk
0:02:04.6]} 20. Bxe5 {[%clk 0:02:08.8]} 20... dxe5 {[%clk 0:02:04.6]} 21. Bf3
{[%clk 0:01:16.8]} 21... Bf4 {[%clk 0:02:01.8]} 22. Qf2 {[%clk 0:01:14.2]} 22...
Kb8 {[%clk 0:01:57.7]} 23. Ne2 {[%clk 0:00:58.5]} 23... Bb5 {[%clk 0:01:51.7]}
24. Nxf4 {[%clk 0:00:57]} 24... Bxf1 {[%clk 0:01:49.9]} 25. Nxe6 {[%clk
0:00:39.3]} 25... fxe6 {[%clk 0:01:47.1]} 26. Rxf1 {[%clk 0:00:37.9]} 26... Rdg8
{[%clk 0:01:33.7]} 27. Qc5 {[%clk 0:00:15.3]} 27... Nxg4 {[%clk 0:01:29.4]} 28.
Qxc7+ {[%clk 0:00:15.9]} 28... Kxc7 {[%clk 0:01:29.9]} 29. Bxg4 {[%clk
0:00:15.1]} 29... Rxg4+ {[%clk 0:01:30.6]} 30. Kf2 {[%clk 0:00:16]} 30... Rf8+
{[%clk 0:01:30]} 31. Ke2 {[%clk 0:00:07]} 31... Rxe4+ {[%clk 0:01:30.7]} 32. Kd3
{[%clk 0:00:08.2]} 32... Rxf1 {[%clk 0:01:31.7]} 33. Kxe4 {[%clk 0:00:09.5]}
33... Re1+ {[%clk 0:01:29.6]} 34. Kf3 {[%clk 0:00:10.3]} 34... Rb1 {[%clk
0:01:28.4]} 35. Ke4 {[%clk 0:00:09.4]} 35... Rxb2 {[%clk 0:01:29.6]} 36. Kxe5
{[%clk 0:00:09.5]} 36... Rxc2 {[%clk 0:01:30.7]} 37. Kxe6 {[%clk 0:00:08.6]}
37... Rxa2 {[%clk 0:01:31.5]} 38. Nd4 {[%clk 0:00:09.5]} 38... Rd2 {[%clk
0:01:31.6]} 39. Nb3 {[%clk 0:00:08.8]} 39... Re2+ {[%clk 0:01:31.5]} 40. Kd5
{[%clk 0:00:09.5]} 40... b6 {[%clk 0:01:32.8]} 41. Kc4 {[%clk 0:00:10.3]} 41...
a5 {[%clk 0:01:32.9]} 42. Kb5 {[%clk 0:00:11]} 42... Rb2 {[%clk 0:01:33.1]} 43.
Ka4 {[%clk 0:00:12.6]} 43... Rxb3 {[%clk 0:01:34.4]} 44. Kxb3 {[%clk 0:00:14.5]}
44... Kc6 {[%clk 0:01:35.8]} 0-1

[Event "*** Titled Tuesday Blitz AM"]
[Site "Chess.com"]
[Date "2020.01.07"]
[Round "8"]
[White "trickytock"]
[Black "Ariadna_Atreides"]
[Result "1-0"]
[WhiteElo "2493"]
[BlackElo "2047"]
[TimeControl "180+2"]
[EndTime "10:49:47 PST"]
[Termination "trickytock won by checkmate"]

1. e4 {[%clk 0:03:01]} 1... c5 {[%clk 0:03:00.7]} 2. Nf3 {[%clk 0:03:01.6]} 2...
d6 {[%clk 0:03:01.9]} 3. d4 {[%clk 0:03:02.6]} 3... cxd4 {[%clk 0:03:03.3]} 4.
Nxd4 {[%clk 0:03:04.5]} 4... Nf6 {[%clk 0:03:04.2]} 5. Nc3 {[%clk 0:03:06.4]}
5... Nc6 {[%clk 0:03:05.5]} 6. Bg5 {[%clk 0:03:06.6]} 6... e6 {[%clk 0:03:05.8]}
7. Qd2 {[%clk 0:03:06.4]} 7... a6 {[%clk 0:03:04.7]} 8. O-O-O {[%clk 0:03:06]}
8... Bd7 {[%clk 0:03:05]} 9. f4 {[%clk 0:03:05.8]} 9... Be7 {[%clk 0:03:05.3]}
10. Nf3 {[%clk 0:03:06.4]} 10... b5 {[%clk 0:03:05.4]} 11. Bxf6 {[%clk
0:03:05.3]} 11... gxf6 {[%clk 0:03:00.7]} 12. Kb1 {[%clk 0:03:00.3]} 12... Qc7
{[%clk 0:02:56.2]} 13. g3 {[%clk 0:02:58.9]} 13... Na5 {[%clk 0:02:52.9]} 14.
Nd4 {[%clk 0:02:57.5]} 14... Nc4 {[%clk 0:02:49.8]} 15. Bxc4 {[%clk 0:02:58.3]}
15... Qxc4 {[%clk 0:02:47.5]} 16. f5 {[%clk 0:03:00.2]} 16... O-O {[%clk
0:02:35.8]} 17. Nce2 {[%clk 0:02:53.7]} 17... e5 {[%clk 0:02:16.8]} 18. b3
{[%clk 0:01:55.3]} 18... Qc7 {[%clk 0:02:16.3]} 19. Nf3 {[%clk 0:01:52]} 19...
b4 {[%clk 0:01:58.9]} 20. g4 {[%clk 0:01:47.6]} 20... a5 {[%clk 0:01:55]} 21.
Qh6 {[%clk 0:01:40.1]} 21... Kh8 {[%clk 0:01:44]} 22. g5 {[%clk 0:01:39.7]}
22... Qd8 {[%clk 0:01:10.7]} 23. gxf6 {[%clk 0:01:29.6]} 23... Bxf6 {[%clk
0:01:10.8]} 24. Rxd6 {[%clk 0:01:31.5]} 24... Be7 {[%clk 0:01:00.4]} 25. f6
{[%clk 0:01:31.6]} 25... Rg8 {[%clk 0:00:49.7]} 26. fxe7 {[%clk 0:01:31.7]}
26... Qxe7 {[%clk 0:00:51.1]} 27. Qf6+ {[%clk 0:01:23.3]} 27... Qxf6 {[%clk
0:00:51.8]} 28. Rxf6 {[%clk 0:01:25.2]} 28... Bb5 {[%clk 0:00:51.6]} 29. Ng3
{[%clk 0:01:25.7]} 29... Rae8 {[%clk 0:00:50.7]} 30. Rxf7 {[%clk 0:01:24.4]}
30... a4 {[%clk 0:00:50.4]} 31. Nf5 {[%clk 0:01:19.1]} 31... axb3 {[%clk
0:00:48.7]} 32. axb3 {[%clk 0:01:19.1]} 32... Rg2 {[%clk 0:00:48]} 33. h4 {[%clk
0:01:15.3]} 33... Rc8 {[%clk 0:00:42.8]} 34. Rc1 {[%clk 0:01:16.3]} 34... Be2
{[%clk 0:00:28.7]} 35. Ng5 {[%clk 0:01:16.3]} 35... h6 {[%clk 0:00:16.2]} 36.
Nxh6 {[%clk 0:01:13.2]} 36... Rg4 {[%clk 0:00:06.5]} 37. Rh7# {[%clk 0:01:12.9]}
1-0

[Event "*** Titled Tuesday Blitz AM"]
[Site "Chess.com"]
[Date "2020.01.07"]
[Round "8"]
[White "Er_is_geen_hoop_meer"]
[Black "GMCarbone"]
[Result "1/2-1/2"]
[WhiteElo "2351"]
[BlackElo "2264"]
[TimeControl "180+2"]
[EndTime "10:49:49 PST"]
[Termination "Game drawn - insufficient material"]

1. b4 {[%clk 0:02:49.4]} 1... e5 {[%clk 0:02:58.1]} 2. a3 {[%clk 0:02:50.3]}
2... d5 {[%clk 0:02:57.6]} 3. Bb2 {[%clk 0:02:51.6]} 3... Bd6 {[%clk 0:02:57.6]}
4. c4 {[%clk 0:02:52.9]} 4... c6 {[%clk 0:02:58.2]} 5. Nf3 {[%clk 0:02:54.2]}
5... Qe7 {[%clk 0:02:58.3]} 6. cxd5 {[%clk 0:02:55]} 6... cxd5 {[%clk 0:02:59]}
7. Nc3 {[%clk 0:02:56.9]} 7... Nf6 {[%clk 0:03:00.2]} 8. Nb5 {[%clk 0:02:56.6]}
8... e4 {[%clk 0:02:54]} 9. Nxd6+ {[%clk 0:02:54.9]} 9... Qxd6 {[%clk
0:02:55.5]} 10. Nd4 {[%clk 0:02:56.1]} 10... Nc6 {[%clk 0:02:55.4]} 11. Nxc6
{[%clk 0:02:57]} 11... bxc6 {[%clk 0:02:55.9]} 12. d3 {[%clk 0:02:58.4]} 12...
O-O {[%clk 0:02:45.3]} 13. e3 {[%clk 0:02:58.6]} 13... Bg4 {[%clk 0:02:44]} 14.
Be2 {[%clk 0:02:55.4]} 14... Bxe2 {[%clk 0:02:44.7]} 15. Qxe2 {[%clk 0:02:57.3]}
15... Rfe8 {[%clk 0:02:42.7]} 16. O-O {[%clk 0:02:54.5]} 16... a5 {[%clk
0:02:43.7]} 17. bxa5 {[%clk 0:02:53.7]} 17... Rxa5 {[%clk 0:02:42.1]} 18. Rac1
{[%clk 0:02:54.8]} 18... Rb8 {[%clk 0:02:39.1]} 19. Rfd1 {[%clk 0:02:51.7]}
19... exd3 {[%clk 0:02:36.9]} 20. Rxd3 {[%clk 0:02:50.8]} 20... Rab5 {[%clk
0:02:36.7]} 21. Bd4 {[%clk 0:02:47.3]} 21... h6 {[%clk 0:02:35.8]} 22. g3 {[%clk
0:02:45.4]} 22... Rb3 {[%clk 0:02:35.9]} 23. Bc5 {[%clk 0:02:43.3]} 23... Qe5
{[%clk 0:02:33]} 24. Rxb3 {[%clk 0:02:43.4]} 24... Rxb3 {[%clk 0:02:34.9]} 25.
Qc2 {[%clk 0:02:42.1]} 25... Rb2 {[%clk 0:02:32.1]} 26. Qc3 {[%clk 0:02:43.1]}
26... Qxc3 {[%clk 0:02:30.2]} 27. Rxc3 {[%clk 0:02:45]} 27... Ne4 {[%clk
0:02:31.3]} 28. Rc1 {[%clk 0:02:46.3]} 28... Nxf2 {[%clk 0:02:30]} 29. Bd4
{[%clk 0:02:47.7]} 29... Nh3+ {[%clk 0:02:25.8]} 30. Kh1 {[%clk 0:02:48.3]}
30... Ra2 {[%clk 0:02:26.2]} 31. Rxc6 {[%clk 0:02:48.3]} 31... Rxa3 {[%clk
0:02:25.2]} 32. Rc8+ {[%clk 0:02:49.5]} 32... Kh7 {[%clk 0:02:25.6]} 33. Rc7
{[%clk 0:02:51.4]} 33... Kg6 {[%clk 0:02:24.3]} 34. Rd7 {[%clk 0:02:52.6]} 34...
Ra2 {[%clk 0:02:14.7]} 35. Rxd5 {[%clk 0:02:50.3]} 35... Nf2+ {[%clk 0:02:14.7]}
36. Kg2 {[%clk 0:02:50]} 36... Ng4+ {[%clk 0:02:14]} 37. Kf3 {[%clk 0:02:43.5]}
37... Nxh2+ {[%clk 0:02:14.8]} 38. Ke4 {[%clk 0:02:44.9]} 38... Ng4 {[%clk
0:02:11.9]} 39. Rd6+ {[%clk 0:02:31.3]} 39... f6 {[%clk 0:02:11.9]} 40. Rb6
{[%clk 0:02:29]} 40... h5 {[%clk 0:02:12.5]} 41. Rc6 {[%clk 0:02:26.1]} 41...
Rg2 {[%clk 0:02:01.1]} 42. Kf3 {[%clk 0:02:26.7]} 42... Rf2+ {[%clk 0:02:02.2]}
43. Ke4 {[%clk 0:02:28.2]} 43... Rf1 {[%clk 0:01:55.5]} 44. Bc5 {[%clk
0:02:26.9]} 44... Re1 {[%clk 0:01:53.6]} 45. Rc7 {[%clk 0:02:22.8]} 45... Rc1
{[%clk 0:01:41.3]} 46. Bd6 {[%clk 0:02:21]} 46... Rxc7 {[%clk 0:01:40.3]} 47.
Bxc7 {[%clk 0:02:22.9]} 47... Kf7 {[%clk 0:01:33.3]} 48. Kf5 {[%clk 0:02:22.2]}
48... g6+ {[%clk 0:01:34]} 49. Kf4 {[%clk 0:02:22.1]} 49... Ke6 {[%clk
0:01:35.9]} 50. Bd8 {[%clk 0:02:21.6]} 50... Nh6 {[%clk 0:01:36.2]} 51. e4
{[%clk 0:02:21.7]} 51... Nf7 {[%clk 0:01:36.3]} 52. Bc7 {[%clk 0:02:22.7]} 52...
Ng5 {[%clk 0:01:34.4]} 53. Bb8 {[%clk 0:02:19.1]} 53... Nh3+ {[%clk 0:01:33.9]}
54. Kf3 {[%clk 0:02:19.9]} 54... Ng5+ {[%clk 0:01:33.6]} 55. Kf4 {[%clk
0:02:21.1]} 55... Nf7 {[%clk 0:01:35.1]} 56. Bc7 {[%clk 0:02:21.7]} 56... Nd6
{[%clk 0:01:33.5]} 57. e5 {[%clk 0:02:17.3]} 57... fxe5+ {[%clk 0:01:29.8]} 58.
Kg5 {[%clk 0:02:18.5]} 58... Ne4+ {[%clk 0:01:28.9]} 59. Kxg6 {[%clk 0:02:19.4]}
59... Nxg3 {[%clk 0:01:29.9]} 60. Kg5 {[%clk 0:02:20.9]} 60... Nf5 {[%clk
0:01:08]} 61. Bxe5 {[%clk 0:02:14.9]} 61... Kxe5 {[%clk 0:01:09.3]} 62. Kxh5
{[%clk 0:02:16]} 1/2-1/2

[Event "*** Titled Tuesday Blitz AM"]
[Site "Chess.com"]
[Date "2020.01.07"]
[Round "8"]
[White "Mikasinski"]
[Black "ChessyInstinct"]
[Result "0-1"]
[WhiteElo "2300"]
[BlackElo "2436"]
[TimeControl "180+2"]
[EndTime "10:49:53 PST"]
[Termination "ChessyInstinct won by resignation"]

1. e4 {[%clk 0:03:01.9]} 1... e5 {[%clk 0:03:00.8]} 2. Nf3 {[%clk 0:03:02.7]}
2... Nc6 {[%clk 0:03:01.8]} 3. Nc3 {[%clk 0:03:03.7]} 3... Nf6 {[%clk
0:02:58.7]} 4. Bb5 {[%clk 0:03:02.9]} 4... Bb4 {[%clk 0:02:30.3]} 5. O-O {[%clk
0:03:02.9]} 5... O-O {[%clk 0:02:27.9]} 6. d3 {[%clk 0:03:03.4]} 6... d6 {[%clk
0:02:27]} 7. Bg5 {[%clk 0:03:03.9]} 7... h6 {[%clk 0:02:24.7]} 8. Bxf6 {[%clk
0:03:04.2]} 8... Qxf6 {[%clk 0:02:23.9]} 9. Nd5 {[%clk 0:03:04.8]} 9... Qd8
{[%clk 0:02:17.1]} 10. Bxc6 {[%clk 0:03:04.9]} 10... bxc6 {[%clk 0:02:17.4]} 11.
Nxb4 {[%clk 0:03:06.5]} 11... Bd7 {[%clk 0:02:15.8]} 12. c3 {[%clk 0:02:59.7]}
12... f5 {[%clk 0:02:16.3]} 13. exf5 {[%clk 0:02:50.9]} 13... Rxf5 {[%clk
0:02:18.2]} 14. Nc2 {[%clk 0:02:50.7]} 14... Rf7 {[%clk 0:02:14.6]} 15. Ne3
{[%clk 0:02:51]} 15... Rb8 {[%clk 0:02:08.8]} 16. b4 {[%clk 0:02:48.4]} 16...
Qf6 {[%clk 0:01:59.5]} 17. Nd2 {[%clk 0:02:39.4]} 17... Qg6 {[%clk 0:01:55.1]}
18. Ne4 {[%clk 0:02:33.6]} 18... Rbf8 {[%clk 0:01:54.3]} 19. f3 {[%clk
0:02:26.9]} 19... d5 {[%clk 0:01:49.5]} 20. Nc5 {[%clk 0:02:25.8]} 20... Bc8
{[%clk 0:01:45]} 21. Qe2 {[%clk 0:02:17.6]} 21... h5 {[%clk 0:01:43.5]} 22. Kh1
{[%clk 0:02:06]} 22... h4 {[%clk 0:01:43]} 23. h3 {[%clk 0:01:48.2]} 23... Qg3
{[%clk 0:01:36.6]} 24. Ng4 {[%clk 0:01:44.4]} 24... Bxg4 {[%clk 0:01:24.8]} 25.
fxg4 {[%clk 0:01:41.1]} 25... Rf2 {[%clk 0:01:22.6]} 26. Rxf2 {[%clk 0:01:12.7]}
26... Rxf2 {[%clk 0:01:24.5]} 27. Qxf2 {[%clk 0:01:13.4]} 27... Qxf2 {[%clk
0:01:25.8]} 28. a4 {[%clk 0:01:05.5]} 28... Qe2 {[%clk 0:00:45.7]} 29. a5 {[%clk
0:00:55.4]} 29... e4 {[%clk 0:00:42.4]} 30. dxe4 {[%clk 0:00:54.3]} 30... dxe4
{[%clk 0:00:44.3]} 31. Ne6 {[%clk 0:00:52.9]} 31... e3 {[%clk 0:00:40.1]} 32.
Nd4 {[%clk 0:00:52.7]} 32... Qf2 {[%clk 0:00:32]} 33. Nf3 {[%clk 0:00:51.5]}
33... Qb2 {[%clk 0:00:31]} 34. Re1 {[%clk 0:00:50.7]} 34... Qxc3 {[%clk
0:00:31.7]} 35. Kh2 {[%clk 0:00:48.2]} 35... Qxb4 {[%clk 0:00:23.3]} 36. Rxe3
{[%clk 0:00:48.7]} 36... Qf4+ {[%clk 0:00:23.4]} 0-1